bitfinex/quotes_BTCUSD_20250607
["timestamp","ask_amount","ask_price","bid_price","bid_amount"]
[1749289980772,6.83299817,104980.0,104970.0,0.03222137]
[1749289981012,6.84413603,104980.0,104970.0,0.03222137]
[1749289981242,6.83299833,104980.0,104970.0,0.03222137]
[1749289981938,6.92271517,104980.0,104970.0,0.03222137]
[1749289982168,6.940539,104980.0,104970.0,0.03222137]
[1749289982400,6.94722293,104980.0,104970.0,0.03222137]
[1749289982814,6.940539,104980.0,104970.0,0.03222137]
[1749289983019,6.92271517,104980.0,104970.0,0.03222137]
[1749289983235,6.94722293,104980.0,104970.0,0.03222137]
[1749289983723,6.940539,104980.0,104970.0,0.03222137]
[1749289983928,6.94722336,104980.0,104970.0,0.03222137]
[1749289984135,6.94722337,104980.0,104970.0,0.03222137]
[1749289984393,6.92939954,104980.0,104970.0,0.03222137]
[1749289984611,6.94722452,104980.0,104970.0,0.03222137]
[1749289985022,6.94722452,104980.0,104970.0,0.01612137]
[1749289985514,6.92271517,104980.0,104970.0,0.01612137]
[1749289985719,6.94054699,104980.0,104970.0,0.01612137]
[1749289985921,6.94723387,104980.0,104970.0,0.01612137]
[1749289986153,6.94054695,104980.0,104970.0,0.01612137]
[1749289986352,6.92940209,104980.0,104970.0,0.01612137]
[1749289986567,6.94723387,104980.0,104970.0,0.01612137]
[1749289986975,6.94723419,104980.0,104970.0,0.01612137]
[1749289987179,6.94054781,104980.0,104970.0,0.01612137]
[1749289987392,6.92940241,104980.0,104970.0,0.01612137]
[1749289987585,6.94054781,104980.0,104970.0,0.01612137]
[1749289987745,6.94723505,104980.0,104970.0,0.01612137]
[1749289988312,6.98533619,104980.0,104970.0,0.01612137]
[1749289988720,6.98534073,104980.0,104970.0,0.01612137]
[1749289988931,6.97866106,104980.0,104970.0,0.01612137]
[1749289989137,6.98535284,104980.0,104970.0,0.01612137]
[1749289989349,6.88895336,104980.0,104970.0,0.01612137]
[1749289989551,6.88226461,104980.0,104970.0,0.03202137]
[1749289989753,6.88895754,104980.0,104970.0,0.03202137]
[1749289990174,6.88896152,104980.0,104970.0,0.03202137]
[1749289990788,6.88896196,104980.0,104970.0,0.03202137]
[1749289990991,6.86441683,104980.0,104970.0,0.03202137]
[1749289991399,6.87111229,104980.0,104970.0,0.03202137]
[1749289991812,6.88896685,104980.0,104970.0,0.03202137]
[1749289992228,6.88227139,104980.0,104970.0,0.03202137]
[1749289992437,6.31540906,104980.0,104970.0,0.03202137]
[1749289992648,0.23790235,104980.0,104970.0,0.03202137]
[1749289992848,0.76407184,104980.0,104970.0,0.03202137]
[1749289993058,0.78691115,104980.0,104970.0,0.03202137]
[1749289993260,0.78691126,104980.0,104970.0,0.03202137]
[1749289993684,0.78689691,104980.0,104970.0,0.03202137]
[1749289993891,0.78689164,104980.0,104970.0,0.03202137]
[1749289994438,0.78689165,104980.0,104970.0,0.03202137]
[1749289994638,0.76905004,104980.0,104970.0,0.03202137]
[1749289994843,0.78689165,104980.0,104970.0,0.03202137]
[1749289995839,0.76235944,104980.0,104970.0,0.03202137]
[1749289996032,0.7801966,104980.0,104970.0,0.03202137]
[1749289996227,0.76904837,104980.0,104970.0,0.03202137]
[1749289996429,0.78688554,104980.0,104970.0,0.03202137]
[1749289996626,0.78688553,104980.0,104970.0,0.03202137]
[1749289997413,0.78019583,104980.0,104970.0,0.03202137]
[1749289997832,0.78688447,104980.0,104970.0,0.03202137]
[1749289998041,0.76904808,104980.0,104970.0,0.03202137]
[1749289998240,0.78688447,104980.0,104970.0,0.03202137]
[1749289998445,0.78688446,104980.0,104970.0,0.03202137]
[1749289998859,0.78019582,104980.0,104970.0,0.03202137]
[1749289999062,0.78688336,104980.0,104970.0,0.03202137]
[1749289999262,0.78019287,104980.0,104970.0,0.03202137]
[1749289999500,0.78688042,104980.0,104970.0,0.03202137]
[1749289999703,0.59636795,104980.0,104970.0,0.03202137]
[1749289999918,0.78688042,104980.0,104970.0,0.03202137]
[1749290000121,1.33588819,104980.0,104970.0,0.03202137]
[1749290001126,1.31136721,104980.0,104970.0,0.03202137]
[1749290001329,1.32920065,104980.0,104970.0,0.03202137]
[1749290001982,1.33588819,104980.0,104970.0,0.03202137]
[1749290002191,1.33588614,104980.0,104970.0,0.03202137]
[1749290002401,1.31805419,104980.0,104970.0,0.03202137]
[1749290002620,1.32919915,104980.0,104970.0,0.03202137]
[1749290002839,1.33588613,104980.0,104970.0,0.03202137]
[1749290003047,1.33588614,104980.0,104970.0,0.03202137]
[1749290004022,1.33588599,104980.0,104970.0,0.03202137]
[1749290004227,1.33588367,104980.0,104970.0,0.03202137]
[1749290004430,1.31805333,104980.0,104970.0,0.03202137]
[1749290004626,1.33588269,104980.0,104970.0,0.03202137]
[1749290005270,1.33588262,104980.0,104970.0,0.03202137]
[1749290005685,0.78687484,104980.0,104970.0,0.03202137]
[1749290006205,0.78018885,104980.0,104970.0,0.03202137]
[1749290006410,0.78687481,104980.0,104970.0,0.03202137]
[1749290006592,0.78018881,104980.0,104970.0,0.03202137]
[1749290006774,0.78687482,104980.0,104970.0,0.03202137]
[1749290007198,1.335883,104980.0,104970.0,0.03202137]
[1749290007379,1.32919689,104980.0,104970.0,0.03202137]
[1749290007579,1.33588302,104980.0,104970.0,0.03202137]
[1749290007782,1.31136721,104980.0,104970.0,0.03202137]
[1749290008015,1.32919689,104980.0,104970.0,0.03202137]
[1749290008343,1.32919688,104980.0,104970.0,0.03202137]
[1749290008553,1.33588296,104980.0,104970.0,0.03202137]
[1749290008784,1.33588345,104980.0,104970.0,0.03202137]
[1749290009190,1.33588344,104980.0,104970.0,0.03202137]
[1749290009399,1.33588461,104980.0,104970.0,0.03202137]
[1749290009610,1.32919803,104980.0,104970.0,0.03202137]
[1749290009819,1.31136721,104980.0,104970.0,0.03202137]
[1749290010110,1.33588458,104980.0,104970.0,0.03202137]
[1749290010689,1.31136721,104980.0,104970.0,0.03202137]
[1749290011096,1.33588457,104980.0,104970.0,0.03202137]
[1749290011276,1.32919802,104980.0,104970.0,0.03202137]
[1749290011633,1.33588457,104980.0,104970.0,0.03202137]
[1749290011836,1.33588455,104980.0,104970.0,0.03202137]
[1749290012168,1.33588584,104980.0,104970.0,0.03202137]
[1749290012554,1.3358861,104980.0,104970.0,0.03202137]
[1749290012740,1.31136721,104980.0,104970.0,0.03202137]
[1749290012953,1.32919836,104980.0,104970.0,0.03202137]
[1749290013168,1.33588504,104980.0,104970.0,0.03202137]
[1749290013393,1.33588764,104980.0,104970.0,0.03202137]
[1749290013596,1.31136721,104980.0,104970.0,0.03202137]
[1749290013797,1.33588761,104980.0,104970.0,0.03202137]
[1749290014208,1.33588762,104980.0,104970.0,0.03202137]
[1749290014668,1.31136721,104980.0,104970.0,0.03202137]
[1749290014879,1.33588806,104980.0,104970.0,0.03202137]
[1749290015684,1.32920148,104980.0,104970.0,0.03202137]
[1749290015910,1.31805506,104980.0,104970.0,0.03202137]
[1749290016060,1.33588933,104980.0,104970.0,0.03202137]
[1749290017498,1.31805701,104980.0,104970.0,0.03202137]
[1749290017731,1.32920669,104980.0,104970.0,0.03202137]
[1749290017891,1.33589649,104980.0,104970.0,0.03202137]
[1749290019130,1.31805701,104980.0,104970.0,0.03202137]
[1749290019327,1.33589649,104980.0,104970.0,0.03202137]
[1749290019534,1.32920669,104980.0,104970.0,0.03202137]
[1749290019872,1.33591742,104980.0,104970.0,0.03202137]
[1749290020320,1.33591743,104980.0,104970.0,0.03202137]
[1749290021002,1.33591741,104980.0,104970.0,0.03202137]
[1749290021238,1.33591739,104980.0,104970.0,0.03202137]
[1749290021473,1.32922189,104980.0,104970.0,0.03202137]
[1749290021697,1.33591739,104980.0,104970.0,0.03202137]
[1749290022149,1.31136721,104980.0,104970.0,0.03202137]
[1749290022416,1.33591728,104980.0,104970.0,0.03202137]
[1749290022637,1.32922182,104980.0,104970.0,0.03202137]
[1749290022857,1.33591724,104980.0,104970.0,0.03202137]
[1749290023087,1.31806267,104980.0,104970.0,0.03202137]
[1749290023304,1.31136721,104980.0,104970.0,0.03202137]
[1749290023494,1.33591728,104980.0,104970.0,0.03202137]
[1749290024286,1.3359173,104980.0,104970.0,0.03202137]
[1749290024486,1.32922183,104980.0,104970.0,0.03202137]
[1749290024855,1.31806269,104980.0,104970.0,0.03202137]
[1749290025069,1.32922183,104980.0,104970.0,0.03202137]
[1749290025293,1.33591731,104980.0,104970.0,0.03202137]
[1749290025489,1.31307811,104980.0,104970.0,0.03202137]
[1749290025711,1.3359321,104980.0,104970.0,0.03202137]
[1749290025913,0.59641186,104980.0,104970.0,0.03202137]
[1749290026135,1.3359321,104980.0,104970.0,0.03202137]
[1749290026570,1.67592988,104980.0,104970.0,0.03202137]
[1749290027193,1.67592872,104980.0,104970.0,0.03202137]
[1749290027530,1.67592745,104980.0,104970.0,0.03202137]
[1749290027738,1.67592765,104980.0,104970.0,0.03202137]
[1749290027950,1.66923378,104980.0,104970.0,0.03202137]
[1749290028418,1.6759282,104980.0,104970.0,0.03202137]
[1749290028772,1.66923378,104980.0,104970.0,0.03202137]
[1749290028983,1.6759282,104980.0,104970.0,0.03202137]
[1749290029350,1.67592868,104980.0,104970.0,0.03202137]
[1749290029751,1.67592876,104980.0,104970.0,0.03202137]
[1749290030802,1.67592874,104980.0,104970.0,0.03202137]
[1749290031554,1.67592834,104980.0,104970.0,0.03202137]
[1749290031789,1.66923382,104980.0,104970.0,0.03202137]
[1749290031984,1.67592825,104980.0,104970.0,0.03202137]
[1749290032178,1.65807645,104980.0,104970.0,0.03202137]
[1749290032602,1.67592832,104980.0,104970.0,0.03202137]
[1749290033010,1.65807645,104980.0,104970.0,0.03202137]
[1749290033429,1.66923387,104980.0,104970.0,0.03202137]
[1749290033655,1.651382,104980.0,104970.0,0.03202137]
[1749290033861,1.65807641,104980.0,104970.0,0.03202137]
[1749290034068,1.6759282,104980.0,104970.0,0.03202137]
[1749290034280,1.66923387,104980.0,104970.0,0.03202137]
[1749290034488,1.65807631,104980.0,104970.0,0.03202137]
[1749290034693,1.67592781,104980.0,104970.0,0.03202137]
[1749290034894,1.67592765,104980.0,104970.0,0.03202137]
[1749290035101,1.651382,104980.0,104970.0,0.03202137]
[1749290035305,1.66923341,104980.0,104970.0,0.03202137]
[1749290035539,1.66923247,104980.0,104970.0,0.03202137]
[1749290035760,1.67592628,104980.0,104970.0,0.03202137]
[1749290035994,1.67592619,104980.0,104970.0,0.03202137]
[1749290036232,1.651382,104980.0,104970.0,0.03202137]
[1749290036445,1.6692323,104980.0,104970.0,0.03202137]
[1749290036661,1.67592616,104980.0,104970.0,0.03202137]
[1749290036900,1.651382,104980.0,104970.0,0.03202137]
[1749290037106,1.6692311,104980.0,104970.0,0.03202137]
[1749290037311,1.67592499,104980.0,104970.0,0.03202137]
[1749290037550,1.12691673,104980.0,104970.0,0.03202137]
[1749290037771,1.12022319,104980.0,104970.0,0.03202137]
[1749290037992,1.1269167,104980.0,104970.0,0.03202137]
[1749290038414,1.12691684,104980.0,104970.0,0.03202137]
[1749290038619,1.12691693,104980.0,104970.0,0.03202137]
[1749290038834,1.12691718,104980.0,104970.0,0.03202137]
[1749290039041,1.10906776,104980.0,104970.0,0.03202137]
[1749290039264,1.12691718,104980.0,104970.0,0.03202137]
[1749290039674,1.1336107,104980.0,104970.0,0.03202137]
[1749290039882,0.58460293,104980.0,104970.0,0.03202137]
[1749290040100,1.1336107,104980.0,104970.0,0.03202137]
[1749290040303,1.11576129,104980.0,104970.0,0.03202137]
[1749290040528,1.10906776,104980.0,104970.0,0.03202137]
[1749290040959,1.11576128,104980.0,104970.0,0.03202137]
[1749290041175,1.13361068,104980.0,104970.0,0.03202137]
[1749290042077,1.12691671,104980.0,104970.0,0.03202137]
[1749290042294,1.11576127,104980.0,104970.0,0.03202137]
[1749290042514,1.13361061,104980.0,104970.0,0.03202137]
[1749290042738,1.12691712,104980.0,104970.0,0.03202137]
[1749290042956,1.13361063,104980.0,104970.0,0.03202137]
[1749290043207,1.1336106,104980.0,104970.0,0.03202137]
[1749290043652,1.11576126,104980.0,104970.0,0.03202137]
[1749290044111,1.13361059,104980.0,104970.0,0.03202137]
[1749290044331,1.11576126,104980.0,104970.0,0.03202137]
[1749290044546,1.10906776,104980.0,104970.0,0.03202137]
[1749290044749,1.11576126,104980.0,104970.0,0.03202137]
[1749290045173,1.13361059,104980.0,104970.0,0.03202137]
[1749290045379,1.13361058,104980.0,104970.0,0.03202137]
[1749290045589,1.11576125,104980.0,104970.0,0.03202137]
[1749290045768,1.12691707,104980.0,104970.0,0.03202137]
[1749290046010,1.11576107,104980.0,104970.0,0.03202137]
[1749290046220,1.12691701,104980.0,104970.0,0.03202137]
[1749290046427,1.12691699,104980.0,104970.0,0.03202137]
[1749290046638,1.11576122,104980.0,104970.0,0.03202137]
[1749290046846,1.12691699,104980.0,104970.0,0.03202137]
[1749290047034,1.11576092,104980.0,104970.0,0.03202137]
[1749290047266,1.13360915,104980.0,104970.0,0.03202137]
[1749290047468,1.10906776,104980.0,104970.0,0.03202137]
[1749290047670,1.13360849,104980.0,104970.0,0.03202137]
[1749290047880,1.11576045,104980.0,104970.0,0.03202137]
[1749290048088,1.12691496,104980.0,104970.0,0.03202137]
[1749290048291,1.13360705,104980.0,104970.0,0.03202137]
[1749290048503,1.13360702,104980.0,104970.0,0.03202137]
[1749290049147,1.13360701,104980.0,104970.0,0.03202137]
[1749290049355,1.10906776,104980.0,104970.0,0.03202137]
[1749290049925,1.13360693,104980.0,104970.0,0.03202137]
[1749290050345,1.13360639,104980.0,104970.0,0.03202137]
[1749290050800,1.13360619,104980.0,104970.0,0.03202137]
[1749290051020,1.13360621,104980.0,104970.0,0.03202137]
[1749290051239,1.12691396,104980.0,104970.0,0.03202137]
[1749290051461,1.12691397,104980.0,104970.0,0.03202137]
[1749290051878,1.13360628,104980.0,104970.0,0.03202137]
[1749290052539,1.1336063,104980.0,104970.0,0.03202137]
[1749290052779,1.13360634,104980.0,104970.0,0.03202137]
[1749290052957,1.13360631,104980.0,104970.0,0.03202137]
[1749290053189,1.13360632,104980.0,104970.0,0.03202137]
[1749290053417,1.13360631,104980.0,104970.0,0.03202137]
[1749290053631,0.24459854,104980.0,104970.0,0.79061254]
[1749290053847,0.23410319,104980.0,104970.0,0.79061254]
[1749290054093,0.05311579,104980.0,104970.0,0.89653809]
[1749290054305,0.24363131,104980.0,104970.0,0.89653809]
[1749290054487,0.23410633,104980.0,104970.0,0.88701202]
[1749290054743,0.23410631,104980.0,104970.0,0.88701202]
[1749290054949,0.23407351,104980.0,104970.0,0.88701202]
[1749290055160,0.21625697,104980.0,104970.0,0.89653818]
[1749290055387,0.23407123,104980.0,104970.0,0.90606425]
[1749290055810,0.23407124,104980.0,104970.0,0.90606425]
[1749290056261,0.23407124,104980.0,104970.0,0.91559023]
[1749290056262,0.02574395,104980.0,104970.0,0.91559023]
[1749290056496,0.02450857,104980.0,104970.0,0.91558959]
[1749290056717,0.01621851,104980.0,104970.0,0.91558959]
[1749290057394,0.02574358,104980.0,104970.0,0.91558959]
[1749290057813,0.01621851,104980.0,104970.0,0.91558959]
[1749290058019,0.02574368,104980.0,104970.0,0.91558959]
[1749290058472,0.21625615,104980.0,104970.0,0.9060637]
[1749290058689,0.23530712,104980.0,104970.0,0.9060637]
[1749290059311,0.04479465,104980.0,104970.0,0.91558959]
[1749290060306,0.02574368,104980.0,104970.0,0.91558959]
[1749290060560,0.01621851,104980.0,104970.0,0.91558959]
[1749290061289,0.03526912,104980.0,104970.0,0.91558959]
[1749290062426,0.04479465,104980.0,104970.0,0.91558959]
[1749290062852,0.02574368,104980.0,104970.0,0.91558959]
[1749290063070,0.02574358,104980.0,104970.0,0.91558959]
[1749290065215,0.01621851,104980.0,104970.0,0.91558959]
[1749290065744,0.01621851,104980.0,104970.0,1.16270959]
[1749290068499,0.03526912,104980.0,104970.0,1.16270959]
[1749290069598,0.04479465,104980.0,104970.0,1.16270959]
[1749290070231,0.03526912,104980.0,104970.0,1.16270959]
[1749290071100,0.01621851,104980.0,104970.0,1.16270959]
[1749290071306,0.0069852,104980.0,104970.0,1.16270959]
[1749290071509,0.20954632,104990.0,104980.0,0.25008851]
[1749290071510,0.21907049,104990.0,104980.0,0.25008851]
[1749290071727,0.21907049,104990.0,104980.0,1.17449765]
[1749290072162,0.21907049,104990.0,104980.0,1.16497258]
[1749290072374,0.21907049,104990.0,104980.0,1.18402301]
[1749290072591,0.21907049,104990.0,104980.0,0.40640136]
[1749290072825,0.20002188,104990.0,104980.0,0.95545715]
[1749290073055,0.20002188,104990.0,104980.0,1.15549506]
[1749290073260,0.19862188,104990.0,104980.0,1.15549506]
[1749290073711,0.19862188,104990.0,104980.0,1.16502041]
[1749290076053,0.19862188,104990.0,104980.0,1.15549506]
[1749290076261,0.19862188,104990.0,104980.0,1.15549524]
[1749290076473,0.19862188,104990.0,104980.0,1.16502077]
[1749290077423,0.19862188,104990.0,104980.0,1.17454621]
[1749290077870,0.21642178,104990.0,104980.0,1.17454621]
[1749290078175,0.21642178,104990.0,104980.0,1.16992795]
[1749290078545,0.21642448,104990.0,104980.0,1.16992795]
[1749290078776,0.2164245,104990.0,104980.0,1.16992795]
[1749290078995,0.21642451,104990.0,104980.0,1.16992795]
[1749290079915,0.21642451,104990.0,104980.0,1.17945321]
[1749290080578,0.21642685,104990.0,104980.0,1.17945321]
[1749290080800,0.21642685,104990.0,104980.0,1.1794532]
[1749290081225,0.19862188,104990.0,104980.0,1.1794532]
[1749290081443,0.21642686,104990.0,104980.0,1.1794532]
[1749290081674,0.19862188,104990.0,104980.0,1.1794532]
[1749290081889,0.21642686,104990.0,104980.0,1.1794532]
[1749290082550,0.21645611,104990.0,104980.0,1.1794532]
[1749290082764,0.19862188,104990.0,104980.0,1.1794532]
[1749290082979,0.21645611,104990.0,104980.0,1.1794532]
[1749290083445,0.19862188,104990.0,104980.0,1.1794532]
[1749290083655,0.21645611,104990.0,104980.0,1.1794532]
[1749290083862,0.21645611,104990.0,104980.0,1.1604025]
[1749290084087,0.19862188,104990.0,104980.0,1.16992785]
[1749290084557,0.2164561,104990.0,104980.0,1.16992785]
[1749290085461,0.21646901,104990.0,104980.0,1.16992785]
[1749290085683,0.21646901,104990.0,104980.0,1.17945311]
[1749290085898,0.19862188,104990.0,104980.0,1.18897828]
[1749290086114,0.21646898,104990.0,104980.0,1.18897828]
[1749290086364,0.21646896,104990.0,104980.0,1.18897828]
[1749290086585,0.19862188,104990.0,104980.0,1.18897828]
[1749290086789,0.21646907,104990.0,104980.0,1.18897828]
[1749290087018,0.21646907,104990.0,104980.0,1.1604025]
[1749290087235,0.21646907,104990.0,104980.0,1.16040241]
[1749290087448,0.21646907,104990.0,104980.0,1.16992776]
[1749290087678,0.21646938,104990.0,104980.0,1.17945302]
[1749290088128,0.19862188,104990.0,104980.0,1.18897819]
[1749290088350,0.02737193,104990.0,104980.0,1.28537666]
[1749290088567,0.05594543,104990.0,104980.0,1.28537665]
[1749290088792,0.03809794,104990.0,104980.0,1.28537665]
[1749290089016,0.24644343,104990.0,104980.0,1.27585167]
[1749290089675,0.24644344,104990.0,104980.0,1.27585167]
[1749290089893,0.03809794,104990.0,104980.0,1.27585167]
[1749290090112,0.05594902,104990.0,104980.0,1.27585167]
[1749290090802,0.055949,104990.0,104980.0,1.27585167]
[1749290091026,0.03809794,104990.0,104980.0,1.27585167]
[1749290091246,0.22859227,104990.0,104980.0,1.27585167]
[1749290091675,0.24644338,104990.0,104980.0,1.27585167]
[1749290091903,0.24644339,104990.0,104980.0,1.27585167]
[1749290093058,0.22859227,104990.0,104980.0,1.27585167]
[1749290093262,0.24644338,104990.0,104980.0,1.25680143]
[1749290093482,0.2369192,104990.0,104980.0,1.25680143]
[1749290093692,0.2190681,104990.0,104980.0,1.25680143]
[1749290093921,0.2369192,104990.0,104980.0,1.2663266]
[1749290094146,0.22739476,104990.0,104980.0,1.25680143]
[1749290094823,0.20954366,104990.0,104980.0,1.25680143]
[1749290095038,0.01904897,104990.0,104980.0,1.27585167]
[1749290095243,0.23691926,104990.0,104980.0,1.27585167]
[1749290095864,0.23691926,104990.0,104980.0,1.2663266]
[1749290096502,0.2369193,104990.0,104980.0,1.2663266]
[1749290096703,0.23691924,104990.0,104980.0,1.2663266]
[1749290097653,0.23691939,104990.0,104980.0,1.2663266]
[1749290097866,0.23691939,104990.0,104980.0,1.27585167]
[1749290098503,0.03690098,104990.0,104980.0,1.27585167]
[1749290098710,0.03690121,104990.0,104980.0,1.27585167]
[1749290099217,0.02857368,104990.0,104980.0,1.28537665]
[1749290099420,0.03690105,104990.0,104980.0,1.28537665]
[1749290099639,0.03690097,104990.0,104980.0,1.26632576]
[1749290099846,0.04642485,104990.0,104980.0,1.26632576]
[1749290100259,0.02857197,104990.0,104980.0,1.26632576]
[1749290100475,0.04642049,104990.0,104980.0,1.26632576]
[1749290100690,0.02857197,104990.0,104980.0,1.26632576]
[1749290100895,0.05594516,104990.0,104980.0,1.26632576]
[1749290101093,0.0464209,104990.0,104980.0,1.26632576]
[1749290101533,0.05594501,104990.0,104980.0,1.26632576]
[1749290101748,0.02857197,104990.0,104980.0,1.26632576]
[1749290101956,0.07999346,105000.0,104990.0,0.23161886]
[1749290102170,0.07999346,105000.0,104990.0,0.23214019]
[1749290102375,0.07999346,105000.0,104990.0,0.24166463]
[1749290104640,0.07999346,105000.0,104990.0,0.25118898]
[1749290105466,0.07046966,105000.0,104990.0,0.03212133]
[1749290105890,0.07046966,105000.0,104990.0,0.23214019]
[1749290106095,0.07046966,105000.0,104990.0,0.24166463]
[1749290107044,0.07046966,105000.0,104990.0,0.03212133]
[1749290107473,0.07046966,105000.0,104990.0,0.01612133]
[1749290107700,0.07046966,105000.0,104990.0,0.02564604]
[1749290107915,0.61947743,105000.0,104990.0,0.21614037]
[1749290108129,0.61947743,105000.0,104990.0,0.22566499]
[1749290108968,0.61947743,105000.0,104990.0,0.01612133]
[1749290110459,0.61947743,105000.0,104990.0,0.21614037]
[1749290110673,0.61947743,105000.0,104990.0,0.22566499]
[1749290113065,0.54900777,105000.0,104990.0,0.22566499]
[1749290113280,0.6421119,105000.0,104990.0,0.22566499]
[1749290113995,0.65995278,105000.0,104990.0,0.21614037]
[1749290114204,0.6421119,105000.0,104990.0,0.21614037]
[1749290114385,0.65995278,105000.0,104990.0,0.21614037]
[1749290115032,0.65995278,105000.0,104990.0,0.30342037]
[1749290115447,0.6421119,105000.0,104990.0,0.30342037]
[1749290115652,0.65995278,105000.0,104990.0,0.30342037]
[1749290115861,0.65995278,105000.0,104990.0,0.31294499]
[1749290116070,0.65995277,105000.0,104990.0,0.31294499]
[1749290116691,0.65995277,105000.0,104990.0,0.32874499]
[1749290116906,0.65995341,105000.0,104990.0,0.32874499]
[1749290117325,0.6421119,105000.0,104990.0,0.33826952]
[1749290117528,0.65995341,105000.0,104990.0,0.33826952]
[1749290117734,0.6421119,105000.0,104990.0,0.33826952]
[1749290117934,0.6599534,105000.0,104990.0,0.33826952]
[1749290118957,0.65995028,105000.0,104990.0,0.33826952]
[1749290119493,0.19051148,105000.0,104990.0,0.33826952]
[1749290119893,0.20835013,105000.0,104990.0,0.33826952]
[1749290120391,0.21787384,105000.0,104990.0,0.34779396]
[1749290120601,0.21787221,105000.0,104990.0,0.34779396]
[1749290121175,0.03688417,105000.0,104990.0,0.35731813]
[1749290121374,0.02857095,105000.0,104990.0,0.35731813]
[1749290121579,0.04640802,105000.0,104990.0,0.35731813]
[1749290122123,0.04640802,105000.0,104990.0,0.35731831]
[1749290122265,0.04640802,105000.0,104990.0,0.35731786]
[1749290122470,0.21904714,105000.0,104990.0,0.35731786]
[1749290122666,0.23688405,105000.0,104990.0,0.35731786]
[1749290122934,0.23688405,105000.0,104990.0,0.3477936]
[1749290123114,0.23688405,105000.0,104990.0,0.35731786]
[1749290123796,0.23688478,105000.0,104990.0,0.35731786]
[1749290123991,0.23688478,105000.0,104990.0,0.3477936]
[1749290124202,0.21904714,105000.0,104990.0,0.33826924]
[1749290124419,0.22736305,105000.0,104990.0,0.33826924]
[1749290124620,0.2095237,105000.0,104990.0,0.33826924]
[1749290124825,0.2273631,105000.0,104990.0,0.33826924]
[1749290125466,0.2273631,105000.0,104990.0,0.34779359]
[1749290126366,0.22736296,105000.0,104990.0,0.34779359]
[1749290126552,0.2095237,105000.0,104990.0,0.35731785]
[1749290126813,0.22736296,105000.0,104990.0,0.34779359]
[1749290127873,0.22736602,105000.0,104990.0,0.34779359]
[1749290128521,0.2095237,105000.0,104990.0,0.34779359]
[1749290128772,0.22736603,105000.0,104990.0,0.34779359]
[1749290128999,0.22736582,105000.0,104990.0,0.34779359]
[1749290130690,0.22736709,105000.0,104990.0,0.34779359]
[1749290131108,0.22736711,105000.0,104990.0,0.34779359]
[1749290131320,0.2095237,105000.0,104990.0,0.34779359]
[1749290131535,0.22736715,105000.0,104990.0,0.34779359]
[1749290131758,1.11769051,105010.0,105000.0,0.20952352]
[1749290131988,0.36870142,105010.0,105000.0,1.08703605]
[1749290132214,0.57686986,105010.0,105000.0,1.0775127]
[1749290132429,0.56734751,105010.0,105000.0,0.86798908]
[1749290132651,0.55781858,105010.0,105000.0,0.86798908]
[1749290132862,0.55781862,105010.0,105000.0,0.86798908]
[1749290133077,0.55781862,105010.0,105000.0,0.86798907]
[1749290133281,0.55781869,105010.0,105000.0,0.86798907]
[1749290133485,0.53998086,105010.0,105000.0,0.87751287]
[1749290133903,0.5578187,105010.0,105000.0,0.87751287]
[1749290134316,0.5578187,105010.0,105000.0,1.07751277]
[1749290134721,0.55781429,105010.0,105000.0,1.07751277]
[1749290135138,0.53998086,105010.0,105000.0,1.07751277]
[1749290135351,0.5578143,105010.0,105000.0,1.07751277]
[1749290136188,0.55781416,105010.0,105000.0,1.07751277]
[1749290136636,0.53998086,105010.0,105000.0,1.08703621]
[1749290136857,0.55781417,105010.0,105000.0,1.08703621]
[1749290137193,0.53998086,105010.0,105000.0,1.08703621]
[1749290137404,0.55781158,105010.0,105000.0,1.08703621]
[1749290137952,0.1905067,105030.0,105010.0,0.22490339]
[1749290138272,0.1905067,105030.0,105020.0,0.60634181]
[1749290138447,0.20833941,105030.0,105020.0,0.6068631]
[1749290138649,0.54833941,105030.0,105020.0,0.6068631]
[1749290138854,0.54833941,105030.0,105020.0,0.60686309]
[1749290139329,0.54701941,105030.0,105020.0,0.60686309]
[1749290139528,0.54701941,105030.0,105020.0,0.40690128]
[1749290139529,0.55713234,105030.0,105020.0,0.40690128]
[1749290139733,0.54748325,105030.0,105020.0,0.40690128]
[1749290140137,0.52966656,105030.0,105020.0,0.40690128]
[1749290140354,0.54748323,105030.0,105020.0,0.41642327]
[1749290140571,0.54748322,105030.0,105020.0,0.41642327]
[1749290141178,0.54748322,105030.0,105020.0,0.40690128]
[1749290141377,1.09649099,105030.0,105020.0,0.39150128]
[1749290141600,1.09648223,105030.0,105020.0,0.39150128]
[1749290142165,1.08828522,105030.0,105020.0,0.39150128]
[1749290142579,1.10609312,105030.0,105020.0,0.39150128]
[1749290143133,1.09648223,105030.0,105020.0,0.39150127]
[1749290143433,1.0964774,105030.0,105020.0,0.39150127]
[1749290144030,1.07867433,105030.0,105020.0,0.41672326]
[1749290144475,1.0964774,105030.0,105020.0,0.40720127]
[1749290144684,1.07867433,105030.0,105020.0,0.40720127]
[1749290144887,1.09647741,105030.0,105020.0,0.40720127]
[1749290146069,1.10624053,105030.0,105020.0,0.40720127]
[1749290146794,1.10623853,105030.0,105020.0,0.40720127]
[1749290147012,1.10623853,105030.0,105020.0,0.01662127]
[1749290147239,1.10623853,105030.0,105020.0,0.39130127]
[1749290147449,1.08843745,105030.0,105020.0,0.39130127]
[1749290147911,1.1062378,105030.0,105020.0,0.39130127]
[1749290148330,1.10623877,105030.0,105020.0,0.39130126]
[1749290148543,1.08843745,105030.0,105020.0,0.39130126]
[1749290149181,1.12143877,105030.0,105020.0,0.00052126]
[1749290149400,1.12143877,105030.0,105020.0,0.28804126]
[1749290149401,1.80661211,105030.0,105020.0,0.28804126]
[1749290149618,1.80661211,105030.0,105020.0,0.28820126]
[1749290149619,1.81159643,105030.0,105020.0,0.28820126]
[1749290149848,1.81827127,105030.0,105020.0,0.28820126]
[1749290150068,1.83607078,105030.0,105020.0,0.28820126]
[1749290150531,1.81827127,105030.0,105020.0,0.28820126]
[1749290150761,1.81159643,105030.0,105020.0,0.00052126]
[1749290150978,1.83607082,105030.0,105020.0,0.28820126]
[1749290151162,1.83607143,105030.0,105020.0,0.28820126]
[1749290151398,1.83607142,105030.0,105020.0,0.28820126]
[1749290151668,1.82939599,105030.0,105020.0,0.28820126]
[1749290151867,1.83607142,105030.0,105020.0,0.28820125]
[1749290152148,1.81827186,105030.0,105020.0,0.28820125]
[1749290152372,1.83607302,105030.0,105020.0,0.28820125]
[1749290152611,1.81827214,105030.0,105020.0,0.28820125]
[1749290152844,1.83607401,105030.0,105020.0,0.28820125]
[1749290153543,1.83607588,105030.0,105020.0,0.28820125]
[1749290153742,1.83607589,105030.0,105020.0,0.28820125]
[1749290154389,1.81159643,105030.0,105020.0,0.28820125]
[1749290154627,1.81159643,105030.0,105020.0,0.00052125]
[1749290154823,7.03328599,105030.0,105020.0,0.00052125]
[1749290155035,6.9791801,105030.0,105020.0,0.00052125]
[1749290155686,6.97917928,105030.0,105020.0,0.00052125]
[1749290155890,7.00112936,105030.0,105020.0,0.00052125]
[1749290156289,7.00780424,105030.0,105020.0,0.00052125]
[1749290156799,1.98405865,105030.0,105020.0,0.00052125]
[1749290157027,7.58306642,105030.0,105020.0,0.00052125]
[1749290157449,7.03405845,105030.0,105020.0,0.00052125]
[1749290157630,7.58306622,105030.0,105020.0,0.00052125]
[1749290157831,7.02738362,105030.0,105020.0,0.00052125]